[Event "*** Titled Tuesday Blitz"]
[Site "Chess.com"]
[Date "2020.12.01"]
[Round "9"]
[White "Oglob71"]
[Black "ecwinslow"]
[Result "1-0"]
[WhiteElo "2439"]
[BlackElo "2262"]
[TimeControl "180+1"]
[EndTime "11:43:45 PST"]
[Termination "Oglob71 won by resignation"]

1. d4 {[%clk 0:03:00.9]} 1... Nf6 {[%clk 0:02:56]} 2. Nf3 {[%clk 0:03:01.1]}
2... e6 {[%clk 0:02:56.1]} 3. c4 {[%clk 0:03:01.3]} 3... d5 {[%clk 0:02:52.3]}
4. Qc2 {[%clk 0:02:58.9]} 4... Bb4+ {[%clk 0:02:46.9]} 5. Bd2 {[%clk 0:02:57.5]}
5... a5 {[%clk 0:02:46]} 6. a3 {[%clk 0:02:53.1]} 6... Be7 {[%clk 0:02:38.2]} 7.
Bf4 {[%clk 0:02:51.3]} 7... dxc4 {[%clk 0:02:31.5]} 8. Qxc4 {[%clk 0:02:48.4]}
8... Nc6 {[%clk 0:02:18.7]} 9. e3 {[%clk 0:02:44.7]} 9... O-O {[%clk 0:02:14.1]}
10. Nc3 {[%clk 0:02:43.3]} 10... Nd5 {[%clk 0:02:02.4]} 11. Bg3 {[%clk
0:02:42.3]} 11... Nb6 {[%clk 0:01:45.3]} 12. Qa2 {[%clk 0:02:41.7]} 12... a4
{[%clk 0:01:43.5]} 13. Bb5 {[%clk 0:02:41.1]} 13... Bd7 {[%clk 0:01:35.9]} 14.
O-O {[%clk 0:02:40.4]} 14... Bd6 {[%clk 0:01:30.1]} 15. Rac1 {[%clk 0:02:36.6]}
15... Na5 {[%clk 0:01:29.3]} 16. Bd3 {[%clk 0:02:32.8]} 16... Rc8 {[%clk
0:01:17]} 17. Qb1 {[%clk 0:02:31.7]} 17... h6 {[%clk 0:01:15.3]} 18. Ne5 {[%clk
0:02:30.7]} 18... Be8 {[%clk 0:01:06.3]} 19. Rcd1 {[%clk 0:02:29.9]} 19... Nd5
{[%clk 0:00:59]} 20. Ne4 {[%clk 0:02:29.2]} 20... f6 {[%clk 0:00:55]} 21. Nc4
{[%clk 0:02:26]} 21... Bxg3 {[%clk 0:00:54]} 22. hxg3 {[%clk 0:02:24.3]} 22...
Nxc4 {[%clk 0:00:52.6]} 23. Bxc4 {[%clk 0:02:23.5]} 23... b5 {[%clk 0:00:52]}
24. Bxd5 {[%clk 0:02:20.9]} 24... Qxd5 {[%clk 0:00:47.8]} 25. Rc1 {[%clk
0:02:16]} 25... Bg6 {[%clk 0:00:44.5]} 26. Nc3 {[%clk 0:02:15.5]} 26... Qb7
{[%clk 0:00:42.5]} 27. Qa2 {[%clk 0:02:14.1]} 27... Bf7 {[%clk 0:00:39.3]} 28.
Qb1 {[%clk 0:02:12.7]} 28... e5 {[%clk 0:00:36.1]} 29. Qd3 {[%clk 0:02:10.8]}
29... c6 {[%clk 0:00:32]} 30. Rfd1 {[%clk 0:02:08.1]} 30... Rfd8 {[%clk
0:00:29.4]} 31. Qe4 {[%clk 0:02:06.7]} 31... exd4 {[%clk 0:00:28.2]} 32. exd4
{[%clk 0:02:04.7]} 32... Qd7 {[%clk 0:00:25.6]} 33. Qf3 {[%clk 0:01:53.5]} 33...
Bb3 {[%clk 0:00:23]} 34. Rd3 {[%clk 0:01:51.8]} 34... Bc4 {[%clk 0:00:21.8]} 35.
Rd2 {[%clk 0:01:51.2]} 35... c5 {[%clk 0:00:18.1]} 36. d5 {[%clk 0:01:50.8]}
36... Qd6 {[%clk 0:00:18.4]} 37. Rcd1 {[%clk 0:01:48.8]} 37... Re8 {[%clk
0:00:17.4]} 38. Ne4 {[%clk 0:01:47.2]} 38... Qe5 {[%clk 0:00:16.7]} 39. Nc3
{[%clk 0:01:44.3]} 39... Rcd8 {[%clk 0:00:15.6]} 40. d6 {[%clk 0:01:43.7]} 40...
Bb3 {[%clk 0:00:15.4]} 41. Rc1 {[%clk 0:01:38.8]} 41... Rxd6 {[%clk 0:00:14.1]}
42. Rxd6 {[%clk 0:01:37.1]} 42... Qxd6 {[%clk 0:00:14]} 43. Nxb5 {[%clk
0:01:37.2]} 43... Qd2 {[%clk 0:00:13]} 44. Qc3 {[%clk 0:01:36]} 44... Qxc3
{[%clk 0:00:10.1]} 45. Nxc3 {[%clk 0:01:35.2]} 45... Rd8 {[%clk 0:00:08.9]} 46.
Re1 {[%clk 0:01:31.8]} 46... Rd2 {[%clk 0:00:08.6]} 47. Re2 {[%clk 0:01:32.2]}
47... Rxe2 {[%clk 0:00:07.7]} 48. Nxe2 {[%clk 0:01:30.6]} 48... Kf7 {[%clk
0:00:08.3]} 49. f3 {[%clk 0:01:30.8]} 49... g5 {[%clk 0:00:08.4]} 50. Kf2 {[%clk
0:01:31.4]} 50... Ke6 {[%clk 0:00:09]} 51. Ke3 {[%clk 0:01:31.7]} 51... Kd5
{[%clk 0:00:09.5]} 52. Nc3+ {[%clk 0:01:32.1]} 52... Ke5 {[%clk 0:00:08.1]} 53.
Ne4 {[%clk 0:01:30.8]} 53... c4 {[%clk 0:00:07]} 54. Nc3 {[%clk 0:01:30.2]}
54... h5 {[%clk 0:00:06.6]} 55. f4+ {[%clk 0:01:29.9]} 55... gxf4+ {[%clk
0:00:02.7]} 56. gxf4+ {[%clk 0:01:30.1]} 56... Kf5 {[%clk 0:00:03.2]} 57. Kf3
{[%clk 0:01:30.6]} 57... h4 {[%clk 0:00:03.2]} 58. g3 {[%clk 0:01:27.9]} 58...
hxg3 {[%clk 0:00:03.1]} 59. Kxg3 {[%clk 0:01:26.8]} 59... Bc2 {[%clk 0:00:03.5]}
60. Kf3 {[%clk 0:01:26.4]} 60... Bb3 {[%clk 0:00:04.1]} 61. Ke3 {[%clk
0:01:26.5]} 61... Bc2 {[%clk 0:00:04.5]} 62. Ne2 {[%clk 0:01:25.4]} 62... Bb3
{[%clk 0:00:05]} 63. Nd4+ {[%clk 0:01:25.8]} 63... Kg4 {[%clk 0:00:04.6]} 64.
Ke4 {[%clk 0:01:25.3]} 64... f5+ {[%clk 0:00:04]} 65. Ke5 {[%clk 0:01:23.7]}
65... Bc2 {[%clk 0:00:04.1]} 66. Nxc2 {[%clk 0:01:23.1]} 66... Kf3 {[%clk
0:00:03.4]} 1-0

[Event "*** Titled Tuesday Blitz"]
[Site "Chess.com"]
[Date "2020.12.01"]
[Round "9"]
[White "Sam_ChessMood"]
[Black "Legendinunknown"]
[Result "1-0"]
[WhiteElo "2822"]
[BlackElo "2667"]
[TimeControl "180+1"]
[EndTime "11:43:50 PST"]
[Termination "Sam_ChessMood won by checkmate"]

1. c4 {[%clk 0:02:45.4]} 1... Nf6 {[%clk 0:02:57.2]} 2. Nc3 {[%clk 0:02:43.9]}
2... g6 {[%clk 0:02:56.4]} 3. e4 {[%clk 0:02:42.3]} 3... d6 {[%clk 0:02:55.7]}
4. d4 {[%clk 0:02:42.3]} 4... Bg7 {[%clk 0:02:54.2]} 5. Nf3 {[%clk 0:02:41.8]}
5... O-O {[%clk 0:02:54.1]} 6. Be2 {[%clk 0:02:42.3]} 6... e5 {[%clk 0:02:53.5]}
7. O-O {[%clk 0:02:41.6]} 7... Nc6 {[%clk 0:02:51.7]} 8. d5 {[%clk 0:02:41.6]}
8... Ne7 {[%clk 0:02:50.4]} 9. b4 {[%clk 0:02:41.8]} 9... Nh5 {[%clk 0:02:48.5]}
10. Re1 {[%clk 0:02:40.6]} 10... a5 {[%clk 0:02:46.4]} 11. bxa5 {[%clk
0:02:38.7]} 11... Rxa5 {[%clk 0:02:45]} 12. a4 {[%clk 0:02:38.9]} 12... b6
{[%clk 0:02:43.2]} 13. g3 {[%clk 0:02:31.8]} 13... f5 {[%clk 0:02:38.6]} 14. Ba3
{[%clk 0:02:29.9]} 14... Nf6 {[%clk 0:02:31]} 15. Nd2 {[%clk 0:02:23.6]} 15...
f4 {[%clk 0:02:27.4]} 16. Bb4 {[%clk 0:02:15.9]} 16... Ra8 {[%clk 0:02:25.5]}
17. Nb5 {[%clk 0:02:12.4]} 17... Ba6 {[%clk 0:02:08]} 18. Ra3 {[%clk 0:02:09.6]}
18... h5 {[%clk 0:02:06.8]} 19. Bf3 {[%clk 0:02:03.2]} 19... Bxb5 {[%clk
0:02:04.8]} 20. cxb5 {[%clk 0:02:02.6]} 20... Qd7 {[%clk 0:02:03.4]} 21. Rc3
{[%clk 0:01:56.5]} 21... Ra7 {[%clk 0:02:01.2]} 22. Qc2 {[%clk 0:01:50.5]} 22...
Ne8 {[%clk 0:01:57.1]} 23. Ra1 {[%clk 0:01:41.1]} 23... Kf7 {[%clk 0:01:44.8]}
24. Be2 {[%clk 0:01:35]} 24... Rh8 {[%clk 0:01:43.3]} 25. a5 {[%clk 0:01:33.8]}
25... g5 {[%clk 0:01:40.2]} 26. Qd1 {[%clk 0:01:27.5]} 26... g4 {[%clk
0:01:38.8]} 27. axb6 {[%clk 0:01:26]} 27... cxb6 {[%clk 0:01:34.9]} 28. Rxa7
{[%clk 0:01:25.2]} 28... Qxa7 {[%clk 0:01:35.8]} 29. Nc4 {[%clk 0:01:25.4]}
29... Qb8 {[%clk 0:01:30.6]} 30. Ra3 {[%clk 0:01:19.3]} 30... Ng6 {[%clk
0:01:18]} 31. Ra6 {[%clk 0:01:15.7]} 31... f3 {[%clk 0:01:15.2]} 32. Bf1 {[%clk
0:01:09.8]} 32... h4 {[%clk 0:01:14]} 33. Rxb6 {[%clk 0:01:09.1]} 33... Qd8
{[%clk 0:01:08.9]} 34. Rb7+ {[%clk 0:01:06]} 34... Kg8 {[%clk 0:01:08]} 35. Ne3
{[%clk 0:00:54.9]} 35... Qg5 {[%clk 0:01:03.3]} 36. Nf5 {[%clk 0:00:53.4]} 36...
Qh5 {[%clk 0:00:31.7]} 37. Qc2 {[%clk 0:00:53.1]} 37... hxg3 {[%clk 0:00:25.8]}
38. fxg3 {[%clk 0:00:52.7]} 38... Bh6 {[%clk 0:00:22.2]} 39. h4 {[%clk
0:00:41.2]} 39... gxh3 {[%clk 0:00:19.8]} 40. Qc8 {[%clk 0:00:37.9]} 40... h2+
{[%clk 0:00:14.8]} 41. Kh1 {[%clk 0:00:37.6]} 41... Nf4 {[%clk 0:00:13.1]} 42.
gxf4 {[%clk 0:00:31.9]} 42... Bxf4 {[%clk 0:00:13.2]} 43. Rg7+ {[%clk
0:00:26.5]} 43... Kf8 {[%clk 0:00:12.9]} 44. Bxd6# {[%clk 0:00:26.7]} 1-0

[Event "*** Titled Tuesday Blitz"]
[Site "Chess.com"]
[Date "2020.12.01"]
[Round "9"]
[White "MarcoRiehle"]
[Black "LPSupi"]
[Result "1-0"]
[WhiteElo "2688"]
[BlackElo "2875"]
[TimeControl "180+1"]
[EndTime "11:43:53 PST"]
[Termination "MarcoRiehle won on time"]

1. e4 {[%clk 0:03:00.9]} 1... c5 {[%clk 0:02:57.9]} 2. a3 {[%clk 0:02:59.6]}
2... g6 {[%clk 0:02:56.5]} 3. h4 {[%clk 0:02:58.8]} 3... Nc6 {[%clk 0:02:52.6]}
4. h5 {[%clk 0:02:58.8]} 4... gxh5 {[%clk 0:02:48.5]} 5. Nc3 {[%clk 0:02:54.2]}
5... Nf6 {[%clk 0:02:43.8]} 6. Bc4 {[%clk 0:02:50]} 6... Rg8 {[%clk 0:02:36.3]}
7. Nf3 {[%clk 0:02:43.6]} 7... e6 {[%clk 0:02:17.7]} 8. e5 {[%clk 0:02:40.7]}
8... d5 {[%clk 0:02:10.3]} 9. Bb5 {[%clk 0:02:34.1]} 9... Nd7 {[%clk 0:01:57.7]}
10. Rxh5 {[%clk 0:02:31.4]} 10... Qc7 {[%clk 0:01:57.3]} 11. d3 {[%clk 0:02:14]}
11... a6 {[%clk 0:01:50.6]} 12. Bxc6 {[%clk 0:02:13.6]} 12... bxc6 {[%clk
0:01:40.9]} 13. Bf4 {[%clk 0:02:01.9]} 13... Rb8 {[%clk 0:01:30.2]} 14. Qd2
{[%clk 0:01:49.1]} 14... Rxb2 {[%clk 0:01:25]} 15. Rxh7 {[%clk 0:01:45.1]} 15...
Bg7 {[%clk 0:01:15.6]} 16. Rh5 {[%clk 0:00:43.6]} 16... Rh8 {[%clk 0:01:07.9]}
17. Rxh8+ {[%clk 0:00:40.7]} 17... Bxh8 {[%clk 0:01:08.8]} 18. O-O-O {[%clk
0:00:24.4]} 18... Rb8 {[%clk 0:01:07.7]} 19. Rh1 {[%clk 0:00:23.9]} 19... Bg7
{[%clk 0:00:44.3]} 20. Rh7 {[%clk 0:00:23]} 20... Bf8 {[%clk 0:00:44.5]} 21. Ng5
{[%clk 0:00:22.8]} 21... Qb6 {[%clk 0:00:33.6]} 22. Nxf7 {[%clk 0:00:16.8]}
22... d4 {[%clk 0:00:33.8]} 23. Nd6+ {[%clk 0:00:12.8]} 23... Bxd6 {[%clk
0:00:23.9]} 24. exd6 {[%clk 0:00:13.7]} 24... Qb2+ {[%clk 0:00:24]} 25. Kd1
{[%clk 0:00:13.2]} 25... Qxc3 {[%clk 0:00:24.6]} 26. Qe2 {[%clk 0:00:08.9]}
26... Rb1+ {[%clk 0:00:19.9]} 27. Bc1 {[%clk 0:00:08.8]} 27... Nf6 {[%clk
0:00:08.3]} 28. Re7+ {[%clk 0:00:08.7]} 28... Kd8 {[%clk 0:00:08.8]} 29. Qe5
{[%clk 0:00:06.5]} 29... Qa1 {[%clk 0:00:04.2]} 30. Qxf6 {[%clk 0:00:06.6]}
30... Rxc1+ {[%clk 0:00:04.3]} 31. Ke2 {[%clk 0:00:07.2]} 31... Rxc2+ {[%clk
0:00:02.1]} 32. Kf3 {[%clk 0:00:07.4]} 32... Rxf2+ {[%clk 0:00:01.1]} 33. Kxf2
{[%clk 0:00:08.3]} 33... Qb2+ {[%clk 0:00:01.3]} 34. Kg3 {[%clk 0:00:08.3]} 1-0

[Event "*** Titled Tuesday Blitz"]
[Site "Chess.com"]
[Date "2020.12.01"]
[Round "9"]
[White "AniJak"]
[Black "nochewycandy"]
[Result "1-0"]
[WhiteElo "2399"]
[BlackElo "2517"]
[TimeControl "180+1"]
[EndTime "11:43:54 PST"]
[Termination "AniJak won by checkmate"]

1. e4 {[%clk 0:03:00.9]} 1... g6 {[%clk 0:02:58.7]} 2. d4 {[%clk 0:03:00.5]}
2... Bg7 {[%clk 0:02:58.6]} 3. Nc3 {[%clk 0:03:00.6]} 3... d6 {[%clk 0:02:58.6]}
4. Be3 {[%clk 0:02:58.9]} 4... a6 {[%clk 0:02:58.6]} 5. a4 {[%clk 0:02:58.6]}
5... Nf6 {[%clk 0:02:52.7]} 6. Qd2 {[%clk 0:02:56.2]} 6... Nc6 {[%clk
0:02:50.2]} 7. f3 {[%clk 0:02:55.5]} 7... O-O {[%clk 0:02:44.9]} 8. h4 {[%clk
0:02:53]} 8... e5 {[%clk 0:02:42.2]} 9. Nge2 {[%clk 0:02:44.4]} 9... d5 {[%clk
0:02:35.9]} 10. exd5 {[%clk 0:02:23.6]} 10... Nxd5 {[%clk 0:02:34]} 11. Nxd5
{[%clk 0:02:22.3]} 11... Qxd5 {[%clk 0:02:34.6]} 12. Nc3 {[%clk 0:02:01.9]}
12... Qa5 {[%clk 0:02:22.1]} 13. d5 {[%clk 0:02:01.8]} 13... Nd4 {[%clk
0:02:21.3]} 14. h5 {[%clk 0:01:58.6]} 14... Nf5 {[%clk 0:02:16.2]} 15. Bf2
{[%clk 0:01:42.3]} 15... Bh6 {[%clk 0:02:13.8]} 16. Qd3 {[%clk 0:01:30.8]} 16...
Kg7 {[%clk 0:02:00.2]} 17. g4 {[%clk 0:01:23.5]} 17... Nd6 {[%clk 0:01:49.1]}
18. Be3 {[%clk 0:01:09.1]} 18... Bf4 {[%clk 0:01:06.5]} 19. Bxf4 {[%clk
0:01:05.4]} 19... exf4 {[%clk 0:01:06.4]} 20. Qd4+ {[%clk 0:01:01.5]} 20... f6
{[%clk 0:01:06.5]} 21. Qxf4 {[%clk 0:00:45.5]} 21... Re8+ {[%clk 0:01:06.7]} 22.
Be2 {[%clk 0:00:45.3]} 22... Nf7 {[%clk 0:01:04.6]} 23. hxg6 {[%clk 0:00:36.7]}
23... hxg6 {[%clk 0:01:04.4]} 24. O-O-O {[%clk 0:00:35.9]} 24... b5 {[%clk
0:00:57.1]} 25. g5 {[%clk 0:00:32.4]} 25... Nxg5 {[%clk 0:00:53.7]} 26. Qh4
{[%clk 0:00:32.5]} 26... Bf5 {[%clk 0:00:48.1]} 27. Qh6+ {[%clk 0:00:28.6]}
27... Kf7 {[%clk 0:00:46.3]} 28. d6 {[%clk 0:00:27]} 28... cxd6 {[%clk
0:00:38.9]} 29. Rxd6 {[%clk 0:00:26.4]} 29... Rh8 {[%clk 0:00:20.4]} 30. Qxh8
{[%clk 0:00:25.8]} 30... Rxh8 {[%clk 0:00:21.1]} 31. Rxh8 {[%clk 0:00:25.8]}
31... Qc7 {[%clk 0:00:20.2]} 32. Rhd8 {[%clk 0:00:22.7]} 32... b4 {[%clk
0:00:18.5]} 33. Bd3 {[%clk 0:00:20.2]} 33... Bxd3 {[%clk 0:00:18.2]} 34. cxd3
{[%clk 0:00:20.3]} 34... bxc3 {[%clk 0:00:18.6]} 35. R8d7+ {[%clk 0:00:20.1]}
35... Qxd7 {[%clk 0:00:18.7]} 36. Rxd7+ {[%clk 0:00:20.9]} 36... Ke6 {[%clk
0:00:19.3]} 37. Ra7 {[%clk 0:00:21.1]} 37... cxb2+ {[%clk 0:00:20.2]} 38. Kxb2
{[%clk 0:00:21.3]} 38... Nxf3 {[%clk 0:00:21.1]} 39. Rxa6+ {[%clk 0:00:21.5]}
39... Kf5 {[%clk 0:00:21.9]} 40. Rb6 {[%clk 0:00:21.2]} 40... g5 {[%clk
0:00:21.1]} 41. a5 {[%clk 0:00:21.4]} 41... Ne5 {[%clk 0:00:21.2]} 42. Kc3
{[%clk 0:00:19.4]} 42... g4 {[%clk 0:00:21.2]} 43. a6 {[%clk 0:00:19.4]} 43...
g3 {[%clk 0:00:21.1]} 44. a7 {[%clk 0:00:19.3]} 44... Nd7 {[%clk 0:00:19.4]} 45.
Rb1 {[%clk 0:00:18.9]} 45... g2 {[%clk 0:00:16.2]} 46. a8=Q {[%clk 0:00:18.5]}
46... g1=Q {[%clk 0:00:15]} 47. Rxg1 {[%clk 0:00:17.5]} 47... Nb6 {[%clk
0:00:15.9]} 48. Qe4# {[%clk 0:00:16.4]} 1-0

[Event "*** Titled Tuesday Blitz"]
[Site "Chess.com"]
[Date "2020.12.01"]
[Round "9"]
[White "Sergienko_Sergey"]
[Black "plumalka"]
[Result "0-1"]
[WhiteElo "2363"]
[BlackElo "2494"]
[TimeControl "180+1"]
[EndTime "11:43:55 PST"]
[Termination "plumalka won by resignation"]

1. e4 {[%clk 0:02:58.4]} 1... c5 {[%clk 0:02:59.6]} 2. Nf3 {[%clk 0:02:57]} 2...
d6 {[%clk 0:03:00]} 3. d4 {[%clk 0:02:55]} 3... cxd4 {[%clk 0:02:58.5]} 4. Nxd4
{[%clk 0:02:54.6]} 4... Nf6 {[%clk 0:02:59]} 5. Nc3 {[%clk 0:02:54.5]} 5... Bd7
{[%clk 0:02:59.6]} 6. Bg5 {[%clk 0:02:48]} 6... e6 {[%clk 0:02:59]} 7. Qd2
{[%clk 0:02:44.7]} 7... a6 {[%clk 0:02:58.7]} 8. O-O-O {[%clk 0:02:42.2]} 8...
h6 {[%clk 0:02:58.9]} 9. Bh4 {[%clk 0:02:36.7]} 9... Nxe4 {[%clk 0:02:58.5]} 10.
Nxe4 {[%clk 0:02:35]} 10... Qxh4 {[%clk 0:02:58]} 11. f4 {[%clk 0:02:18.8]}
11... d5 {[%clk 0:02:54.9]} 12. Nf3 {[%clk 0:02:12.8]} 12... Qd8 {[%clk
0:02:51.7]} 13. Ng3 {[%clk 0:02:05.6]} 13... Nc6 {[%clk 0:02:50.8]} 14. Bd3
{[%clk 0:02:02.4]} 14... Qc7 {[%clk 0:02:49.8]} 15. Rhe1 {[%clk 0:01:56.6]}
15... O-O-O {[%clk 0:02:49.3]} 16. Ne5 {[%clk 0:01:48.1]} 16... Nxe5 {[%clk
0:02:44.2]} 17. fxe5 {[%clk 0:01:47.8]} 17... Be7 {[%clk 0:02:44.2]} 18. Kb1
{[%clk 0:01:46.3]} 18... h5 {[%clk 0:02:39.4]} 19. Qe2 {[%clk 0:01:32]} 19... h4
{[%clk 0:02:24.5]} 20. Nf1 {[%clk 0:01:30.8]} 20... Kb8 {[%clk 0:02:23.4]} 21.
Nd2 {[%clk 0:01:26.4]} 21... Rc8 {[%clk 0:02:18.4]} 22. Nf3 {[%clk 0:01:20.1]}
22... Qb6 {[%clk 0:02:15.2]} 23. Ka1 {[%clk 0:01:15.8]} 23... Rc7 {[%clk
0:02:11]} 24. c3 {[%clk 0:01:10.5]} 24... Rhc8 {[%clk 0:02:05.3]} 25. Nd4 {[%clk
0:01:07.5]} 25... Bc5 {[%clk 0:02:04.8]} 26. Nb3 {[%clk 0:01:06.5]} 26... Be7
{[%clk 0:02:01.5]} 27. Rf1 {[%clk 0:01:03.7]} 27... Be8 {[%clk 0:02:00.7]} 28.
h3 {[%clk 0:00:55.6]} 28... g5 {[%clk 0:01:55.7]} 29. Nd4 {[%clk 0:00:52.7]}
29... Bc5 {[%clk 0:01:47.7]} 30. Nb3 {[%clk 0:00:52.3]} 30... a5 {[%clk
0:01:43.5]} 31. Nxc5 {[%clk 0:00:50.5]} 31... Rxc5 {[%clk 0:01:43.2]} 32. Rc1
{[%clk 0:00:49.2]} 32... a4 {[%clk 0:01:42.4]} 33. a3 {[%clk 0:00:48]} 33... d4
{[%clk 0:01:39.4]} 34. c4 {[%clk 0:00:47.2]} 34... Qa5 {[%clk 0:01:31.7]} 35.
Rfe1 {[%clk 0:00:45.7]} 35... b5 {[%clk 0:01:30.1]} 36. Kb1 {[%clk 0:00:41.4]}
36... b4 {[%clk 0:01:27.7]} 37. axb4 {[%clk 0:00:36.7]} 37... Qxb4 {[%clk
0:01:27.4]} 38. Red1 {[%clk 0:00:30.8]} 38... R8c7 {[%clk 0:01:17.9]} 39. Rd2
{[%clk 0:00:29.2]} 39... Rb7 {[%clk 0:01:14.5]} 40. Ka1 {[%clk 0:00:27.3]} 40...
Ra5 {[%clk 0:01:05.7]} 41. c5 {[%clk 0:00:23]} 41... Rxc5 {[%clk 0:01:04]} 42.
Rxc5 {[%clk 0:00:22.4]} 42... Qxc5 {[%clk 0:01:04.9]} 43. Rc2 {[%clk 0:00:22.5]}
43... Qb4 {[%clk 0:01:01.4]} 44. Be4 {[%clk 0:00:20.1]} 44... Rb6 {[%clk
0:00:55.7]} 45. Qd3 {[%clk 0:00:17.8]} 45... Bb5 {[%clk 0:00:53.5]} 46. Qd1
{[%clk 0:00:15.2]} 46... a3 {[%clk 0:00:51.7]} 47. b3 {[%clk 0:00:15.1]} 47...
d3 {[%clk 0:00:47.8]} 48. Rc1 {[%clk 0:00:12.5]} 48... Qxe4 {[%clk 0:00:47.2]}
49. Qg1 {[%clk 0:00:09.7]} 49... Qxe5+ {[%clk 0:00:42.5]} 0-1

[Event "*** Titled Tuesday Blitz"]
[Site "Chess.com"]
[Date "2020.12.01"]
[Round "9"]
[White "toog"]
[Black "zurzan"]
[Result "1-0"]
[WhiteElo "2341"]
[BlackElo "2068"]
[TimeControl "180+1"]
[EndTime "11:43:55 PST"]
[Termination "toog won by resignation"]

1. e4 {[%clk 0:03:00.9]} 1... Nf6 {[%clk 0:02:58.6]} 2. e5 {[%clk 0:03:00.2]}
2... Nd5 {[%clk 0:02:58.9]} 3. d4 {[%clk 0:02:55.3]} 3... d6 {[%clk 0:02:58.7]}
4. Nf3 {[%clk 0:02:56.2]} 4... g6 {[%clk 0:02:58.1]} 5. Bc4 {[%clk 0:02:44.2]}
5... Nb6 {[%clk 0:02:57.9]} 6. Bb3 {[%clk 0:02:44.6]} 6... Bg7 {[%clk
0:02:57.8]} 7. h3 {[%clk 0:02:35.8]} 7... O-O {[%clk 0:02:57.7]} 8. O-O {[%clk
0:02:34.4]} 8... Nc6 {[%clk 0:02:57.6]} 9. Bf4 {[%clk 0:02:31.4]} 9... Na5
{[%clk 0:02:57.2]} 10. Nc3 {[%clk 0:02:28.9]} 10... Nxb3 {[%clk 0:02:56.8]} 11.
axb3 {[%clk 0:02:29.8]} 11... d5 {[%clk 0:02:43.6]} 12. Qd2 {[%clk 0:02:25.9]}
12... Bf5 {[%clk 0:02:32.3]} 13. Bh6 {[%clk 0:02:15.8]} 13... Bxh6 {[%clk
0:02:27.7]} 14. Qxh6 {[%clk 0:02:16.7]} 14... f6 {[%clk 0:02:23.2]} 15. Nh4
{[%clk 0:01:33.9]} 15... fxe5 {[%clk 0:02:20.5]} 16. dxe5 {[%clk 0:01:29.5]}
16... e6 {[%clk 0:02:17.8]} 17. Nxf5 {[%clk 0:01:26.8]} 17... Rxf5 {[%clk
0:02:08.1]} 18. Rfe1 {[%clk 0:01:22.1]} 18... Qf8 {[%clk 0:01:51.1]} 19. Qxf8+
{[%clk 0:01:18.8]} 19... Raxf8 {[%clk 0:01:52]} 20. Rxa7 {[%clk 0:00:57.5]}
20... Rxf2 {[%clk 0:01:49]} 21. Rxb7 {[%clk 0:00:53.3]} 21... Rxc2 {[%clk
0:01:48.6]} 22. Re2 {[%clk 0:00:52.5]} 22... Rxe2 {[%clk 0:01:41.2]} 23. Nxe2
{[%clk 0:00:53.4]} 23... Rf5 {[%clk 0:01:32.1]} 24. Rxc7 {[%clk 0:00:44.2]}
24... Rxe5 {[%clk 0:01:32.2]} 25. Nd4 {[%clk 0:00:43.6]} 25... Re1+ {[%clk
0:01:27.8]} 26. Kf2 {[%clk 0:00:42.2]} 26... Rb1 {[%clk 0:01:19.8]} 27. Nxe6
{[%clk 0:00:35.7]} 27... Rxb2+ {[%clk 0:01:17.6]} 28. Kf3 {[%clk 0:00:35.7]}
28... Rxb3+ {[%clk 0:01:16.8]} 29. Kf4 {[%clk 0:00:35.9]} 29... Rb1 {[%clk
0:00:32.8]} 30. Kg5 {[%clk 0:00:31]} 30... Rf1 {[%clk 0:00:29]} 31. Rg7+ {[%clk
0:00:24.1]} 31... Kh8 {[%clk 0:00:28.7]} 32. Rb7 {[%clk 0:00:24.6]} 32... Rf5+
{[%clk 0:00:27.7]} 33. Kg4 {[%clk 0:00:21.6]} 33... h5+ {[%clk 0:00:27.7]} 34.
Kg3 {[%clk 0:00:20.6]} 34... Rf6 {[%clk 0:00:27.3]} 35. Rxb6 {[%clk 0:00:20.4]}
35... d4 {[%clk 0:00:26.2]} 36. Rb8+ {[%clk 0:00:20.6]} 36... Kh7 {[%clk
0:00:25.7]} 37. Nxd4 {[%clk 0:00:21.5]} 37... Rd6 {[%clk 0:00:24.1]} 38. Nf3
{[%clk 0:00:21.9]} 38... Rd3 {[%clk 0:00:23.5]} 39. Rb7+ {[%clk 0:00:21.8]}
39... Kh6 {[%clk 0:00:23.4]} 40. Kh2 {[%clk 0:00:22.3]} 40... Rd6 {[%clk
0:00:17.1]} 41. h4 {[%clk 0:00:22.4]} 41... Rf6 {[%clk 0:00:15.3]} 42. Ng5
{[%clk 0:00:22.6]} 1-0

[Event "*** Titled Tuesday Blitz"]
[Site "Chess.com"]
[Date "2020.12.01"]
[Round "9"]
[White "esskeettit"]
[Black "QuintilianoR"]
[Result "0-1"]
[WhiteElo "2458"]
[BlackElo "2632"]
[TimeControl "180+1"]
[EndTime "11:43:56 PST"]
[Termination "QuintilianoR won on time"]

1. d4 {[%clk 0:03:00.9]} 1... d5 {[%clk 0:02:59.8]} 2. c4 {[%clk 0:03:01]} 2...
c6 {[%clk 0:02:59.8]} 3. e3 {[%clk 0:02:57.9]} 3... Nf6 {[%clk 0:02:57.5]} 4.
Nf3 {[%clk 0:02:56.6]} 4... Bf5 {[%clk 0:02:56.5]} 5. Nc3 {[%clk 0:02:50.4]}
5... e6 {[%clk 0:02:56.2]} 6. Nh4 {[%clk 0:02:47.8]} 6... Be4 {[%clk 0:02:56.2]}
7. f3 {[%clk 0:02:45.7]} 7... Bg6 {[%clk 0:02:56.3]} 8. Nxg6 {[%clk 0:02:37.7]}
8... hxg6 {[%clk 0:02:57.2]} 9. Qd2 {[%clk 0:02:37.6]} 9... c5 {[%clk
0:02:45.8]} 10. cxd5 {[%clk 0:02:34.9]} 10... exd5 {[%clk 0:02:44]} 11. b3
{[%clk 0:01:56.2]} 11... Nc6 {[%clk 0:02:34.1]} 12. Bb2 {[%clk 0:01:33.3]} 12...
cxd4 {[%clk 0:02:20.1]} 13. exd4 {[%clk 0:01:34.2]} 13... Bd6 {[%clk 0:02:19.4]}
14. Bb5 {[%clk 0:01:24.8]} 14... O-O {[%clk 0:02:10.1]} 15. O-O {[%clk
0:01:18.8]} 15... Qc7 {[%clk 0:01:55.5]} 16. g3 {[%clk 0:01:08.8]} 16... Nxd4
{[%clk 0:01:51.4]} 17. Nxd5 {[%clk 0:00:46.1]} 17... Nxd5 {[%clk 0:01:52.3]} 18.
Bxd4 {[%clk 0:00:44.6]} 18... Rfd8 {[%clk 0:01:49.9]} 19. Rac1 {[%clk
0:00:30.9]} 19... Qe7 {[%clk 0:01:33]} 20. Rfe1 {[%clk 0:00:30.9]} 20... Qf8
{[%clk 0:01:31.4]} 21. Qf2 {[%clk 0:00:28.8]} 21... Nc7 {[%clk 0:01:13.6]} 22.
Bc4 {[%clk 0:00:28]} 22... b5 {[%clk 0:01:10.8]} 23. Bf1 {[%clk 0:00:26.1]}
23... Ne6 {[%clk 0:01:09.9]} 24. Be3 {[%clk 0:00:20.9]} 24... a6 {[%clk
0:01:08.1]} 25. Red1 {[%clk 0:00:20.8]} 25... Ba3 {[%clk 0:01:07.1]} 26. Rxd8
{[%clk 0:00:19.2]} 26... Rxd8 {[%clk 0:01:07.3]} 27. Re1 {[%clk 0:00:19.5]}
27... Bb4 {[%clk 0:01:05.4]} 28. Rc1 {[%clk 0:00:19.6]} 28... Qd6 {[%clk
0:01:03.7]} 29. Kg2 {[%clk 0:00:16]} 29... Qd5 {[%clk 0:01:00.7]} 30. Be2 {[%clk
0:00:14.2]} 30... Qe5 {[%clk 0:00:52.4]} 31. Rd1 {[%clk 0:00:12.6]} 31... Rxd1
{[%clk 0:00:51.9]} 32. Bxd1 {[%clk 0:00:13.5]} 32... Bc5 {[%clk 0:00:52.2]} 33.
Bxc5 {[%clk 0:00:13.2]} 33... Nxc5 {[%clk 0:00:53.1]} 34. Bc2 {[%clk 0:00:13.2]}
34... Ne6 {[%clk 0:00:52.6]} 35. Qd2 {[%clk 0:00:13.2]} 35... Qb2 {[%clk
0:00:50.1]} 36. Qf2 {[%clk 0:00:06.2]} 36... Qxa2 {[%clk 0:00:48.9]} 37. Kh3
{[%clk 0:00:02.8]} 37... Qb2 {[%clk 0:00:47.3]} 38. Qe2 {[%clk 0:00:01.7]} 38...
a5 {[%clk 0:00:37.8]} 39. Qd3 {[%clk 0:00:02]} 39... Qe5 {[%clk 0:00:27.2]} 40.
f4 {[%clk 0:00:01.6]} 40... Qc5 {[%clk 0:00:24]} 0-1